bitfinex-derivatives/quotes_BTCF0:USTF0_20251210
["timestamp","ask_amount","ask_price","bid_price","bid_amount"]
[1765391713647,0.0936168,92622.0,92621.0,0.19822043]
[1765391714047,0.0936168,92622.0,92621.0,0.2321499]
[1765391714246,0.1706068,92622.0,92621.0,0.2321499]
[1765391714446,0.1706068,92622.0,92621.0,0.03492947]
[1765391714952,0.1706068,92622.0,92621.0,0.06400366]
[1765391715346,0.1706068,92622.0,92621.0,0.03492947]
[1765391716456,0.1706068,92622.0,92621.0,0.19032947]
[1765391719052,0.1706068,92622.0,92616.0,0.02923613]
[1765391719053,0.1614773,92617.0,92616.0,0.00016194]
[1765391719251,0.1614773,92617.0,92596.0,0.3608]
[1765391719252,0.15068,92593.0,92592.0,0.12234]
[1765391719559,0.15068,92593.0,92587.0,0.3608]
[1765391719560,0.15068,92591.0,92590.0,0.3608]
[1765391719761,0.0852421,92576.0,92575.0,0.07560212]
[1765391719963,0.0852421,92576.0,92575.0,0.51630212]
[1765391720564,0.1614821,92576.0,92575.0,0.51630212]
[1765391721064,0.1614821,92576.0,92575.0,0.51930212]
[1765391721962,0.0108021,92576.0,92575.0,0.52330212]
[1765391722158,0.0852421,92576.0,92575.0,0.52330212]
[1765391722458,0.0852421,92576.0,92575.0,0.51930212]
[1765391722459,0.0108021,92576.0,92575.0,0.51930212]
[1765391722759,0.50344,92584.0,92583.0,0.1554]
[1765391722953,0.50344,92584.0,92583.0,0.5162]
[1765391723149,0.00016187,92585.0,92584.0,0.1662012]
[1765391723656,1.87e-06,92585.0,92584.0,0.1662012]
[1765391723862,0.3608,92608.0,92598.0,0.1661995]
[1765391723863,0.0107995,92599.0,92598.0,0.1661995]
[1765391724164,0.0852392,92601.0,92600.0,0.20337]
[1765391724556,0.0602392,92601.0,92600.0,0.20337]
[1765391724959,0.0710384,92601.0,92600.0,0.20337]
[1765391725567,0.0730384,92601.0,92600.0,0.20337]
[1765391725967,0.1492784,92601.0,92600.0,0.20337]
[1765391726667,0.1512784,92601.0,92600.0,0.20337]
[1765391728066,0.1492784,92601.0,92600.0,0.20337]
[1765391728268,0.1512784,92601.0,92600.0,0.20337]
[1765391731062,0.1512784,92601.0,92600.0,0.23636627]
[1765391731572,0.0147992,92601.0,92600.0,0.23636627]
[1765391731872,0.1752992,92601.0,92600.0,0.23636627]
[1765391732569,0.1742992,92601.0,92600.0,0.23636627]
[1765391734056,0.6776992,92601.0,92600.0,0.23636627]
[1765391734263,0.6756992,92601.0,92600.0,0.23636627]
[1765391734574,0.6776992,92601.0,92600.0,0.23636627]
[1765391736365,0.003,92601.0,92600.0,0.23636627]
[1765391736568,0.25924646,92630.0,92611.0,0.16177]
[1765391736569,0.50332,92612.0,92611.0,0.16177]
[1765391736773,0.50332,92612.0,92611.0,0.55556627]
[1765391737668,0.0107975,92616.0,92612.0,0.16177]
[1765391737868,0.3608,92627.0,92622.0,0.0107965]
[1765391738068,0.3608,92627.0,92622.0,0.20419611]
[1765391738069,0.49616,92627.0,92622.0,0.20419611]
[1765391738265,0.21978591,92640.0,92622.0,0.20419611]
[1765391738266,0.0107951,92637.0,92624.0,0.0107964]
[1765391738469,0.0909455,92633.0,92632.0,0.16177]
[1765391738674,0.0107955,92633.0,92632.0,0.16177]
[1765391739680,0.0127955,92633.0,92632.0,0.16177]
[1765391740670,0.0137955,92633.0,92632.0,0.16177]
[1765391741068,0.003,92633.0,92632.0,0.16177]
[1765391741477,0.003,92633.0,92632.0,0.19335473]
[1765391741679,0.00107945,92640.0,92639.0,0.1725648]
[1765391741878,0.00107945,92640.0,92639.0,0.5333648]
[1765391742175,0.00107945,92640.0,92639.0,0.56494216]
[1765391742378,0.00107945,92640.0,92639.0,0.5333648]
[1765391742878,0.00407945,92640.0,92639.0,0.56492895]
[1765391743079,0.0107933,92652.0,92651.0,0.16177]
[1765391743281,0.0107933,92652.0,92651.0,0.52257]
[1765391744268,0.0939433,92652.0,92651.0,0.52257]
[1765391744473,0.1762933,92652.0,92651.0,0.52257]
[1765391744674,0.1712938,92647.0,92646.0,0.20931]
[1765391745272,0.005,92652.0,92646.0,0.20931]
[1765391745273,0.005,92652.0,92651.0,0.16177]
[1765391746273,0.00181716,92658.0,92657.0,0.16177]
[1765391746474,0.00107916,92665.0,92664.0,0.2201018]
[1765391746680,0.0107903,92677.0,92676.0,0.16177]
[1765391746885,0.0909403,92677.0,92676.0,0.16177]
[1765391747081,0.0909403,92677.0,92676.0,0.52257]
[1765391747082,0.0107903,92677.0,92676.0,0.52257]
[1765391747586,0.00107887,92690.0,92681.0,0.16177]
[1765391747587,0.1712898,92682.0,92681.0,0.16177]
[1765391748275,0.0909398,92682.0,92681.0,0.16177]
[1765391748780,0.0979398,92682.0,92681.0,0.16177]
[1765391749886,0.0177898,92682.0,92681.0,0.16177]
[1765391750086,0.3608,92695.0,92681.0,0.16177]
[1765391750087,0.3608,92695.0,92689.0,0.16177]
[1765391750384,0.1605,92698.0,92697.0,0.16177]
[1765391751088,0.00107858,92715.0,92714.0,0.16177]
[1765391751385,0.00107858,92715.0,92710.0,0.02377]
[1765391751386,0.01186129,92740.0,92739.0,0.16177]
[1765391751587,0.1605,92731.0,92730.0,0.00016174]
[1765391751890,0.16157829,92740.0,92739.0,0.16177]
[1765391752285,0.00107829,92740.0,92739.0,0.16177]
[1765391752490,0.08222829,92740.0,92739.0,0.16177]
[1765391752683,0.00207829,92740.0,92739.0,0.16177]
[1765391752883,0.08222829,92740.0,92739.0,0.16177]
[1765391753285,0.16257829,92740.0,92739.0,0.16177]
[1765391753480,0.16257829,92740.0,92739.0,0.07926]
[1765391753987,0.16257829,92740.0,92739.0,0.08226]
[1765391754187,0.15727829,92740.0,92739.0,0.16477]
[1765391754595,0.15727829,92740.0,92739.0,0.44306]
[1765391754979,0.15727829,92740.0,92739.0,0.44506]
[1765391755175,0.16806129,92740.0,92739.0,0.3658]
[1765391755684,0.15727829,92740.0,92739.0,0.52757]
[1765391755989,0.15727829,92740.0,92739.0,0.3658]
[1765391759490,0.15727829,92740.0,92739.0,0.44506]
[1765391759801,0.17319,92747.0,92746.0,0.0982222]
[1765391759985,0.2,92750.0,92746.0,0.0982222]
[1765391759986,0.2,92750.0,92749.0,0.17351]
[1765391761291,0.2,92750.0,92749.0,0.17451]
[1765391761694,0.2,92750.0,92749.0,0.89611]
[1765391761996,0.3839718,92750.0,92749.0,0.7256]
[1765391762294,0.3839718,92750.0,92749.0,0.53831]
[1765391763294,0.3839718,92750.0,92749.0,0.53431]
[1765391763492,0.3839718,92750.0,92749.0,0.54131]
[1765391764185,0.3839718,92750.0,92749.0,0.3658]
[1765391764381,0.3839718,92750.0,92730.0,0.05049174]
[1765391764382,0.183974,92731.0,92730.0,0.08760174]
[1765391764586,0.183974,92731.0,92730.0,0.17367174]
[1765391765184,0.183974,92731.0,92730.0,0.00016174]
[1765391765692,0.17319,92710.0,92709.0,0.17351]
[1765391765894,0.010785,92723.0,92700.0,0.27430293]
[1765391766086,0.0107851,92722.0,92719.0,0.0611153]
[1765391766287,0.0107851,92722.0,92721.0,0.17351]
[1765391766487,0.0998447,92726.0,92725.0,0.17351]
[1765391766793,0.00016078,92735.0,92734.0,0.17351]
[1765391767095,0.00016078,92735.0,92734.0,0.1842937]
[1765391767294,0.00016078,92735.0,92734.0,0.5450937]
[1765391768094,0.00016078,92735.0,92734.0,0.5470937]
[1765391768990,0.00016078,92735.0,92734.0,0.5490937]
[1765391769391,0.210782,92750.0,92734.0,0.5490937]
[1765391769392,0.2,92750.0,92749.0,0.205012]
[1765391769892,0.2,92750.0,92749.0,0.565812]
[1765391770286,0.4113,92750.0,92749.0,0.19423]
[1765391770599,0.31044,92750.0,92749.0,0.19423]
[1765391770799,0.2,92750.0,92749.0,0.19523]
[1765391771193,0.2,92750.0,92749.0,0.19723]
[1765391771897,0.31044,92750.0,92749.0,0.19723]
[1765391772301,0.2,92750.0,92749.0,0.19723]
[1765391772692,0.2,92750.0,92749.0,0.19823]
[1765391773510,0.03294,92750.0,92749.0,0.19823]
[1765391773997,0.03294,92750.0,92749.0,0.55903]
[1765391775094,0.03294,92750.0,92749.0,0.55703]
[1765391775095,0.24424,92750.0,92749.0,0.55703]
[1765391775295,0.03294,92750.0,92749.0,0.59402989]
[1765391775600,0.03294,92750.0,92749.0,0.59202989]
[1765391775799,0.03294,92750.0,92749.0,0.59402989]
[1765391776104,0.001078,92765.0,92764.0,0.2294302]
[1765391776296,0.3608,92783.0,92782.0,0.21865]
[1765391776495,0.2751979,92785.0,92784.0,0.11186]
[1765391776695,0.2751979,92785.0,92784.0,0.03399989]
[1765391778901,0.2751979,92785.0,92784.0,0.03599989]
[1765391779501,0.0107779,92785.0,92784.0,0.25464989]
[1765391779693,0.36187771,92790.0,92789.0,0.21865]
[1765391779897,0.37265491,92790.0,92789.0,0.25264989]
[1765391780606,0.58395491,92790.0,92789.0,0.03399989]
[1765391781794,0.57317771,92790.0,92789.0,0.25264989]
[1765391781997,0.00107771,92790.0,92789.0,0.25264989]
[1765391782310,0.00107771,92790.0,92789.0,0.28140065]
[1765391782493,0.00107771,92790.0,92789.0,0.6590579]
[1765391782694,0.00107771,92790.0,92789.0,0.63030151]
[1765391783601,0.00107771,92790.0,92789.0,0.66004063]
[1765391783911,0.00107771,92790.0,92789.0,0.41265151]
[1765391783912,0.21237771,92790.0,92789.0,0.41265151]
[1765391784108,0.21237771,92790.0,92789.0,0.05185151]
[1765391784411,0.57317771,92790.0,92789.0,0.05485151]
[1765391784908,0.57317771,92790.0,92789.0,0.001]
[1765391785110,0.57317771,92790.0,92789.0,0.05543014]
[1765391785408,0.00107771,92790.0,92789.0,0.24250321]
[1765391785801,0.00107771,92790.0,92789.0,0.27106738]
[1765391786108,0.00107771,92790.0,92789.0,0.26906738]
[1765391786311,0.3608,92825.0,92814.0,0.2294244]
[1765391786508,0.0107737,92821.0,92814.0,0.2294244]
[1765391786703,0.0107733,92824.0,92814.0,0.2294244]
[1765391786903,0.3608,92831.0,92814.0,0.62539071]
[1765391787211,0.3608,92831.0,92814.0,0.6540622]
[1765391787407,0.010773,92826.0,92814.0,0.64223757]
[1765391787602,0.3608,92831.0,92814.0,0.64223757]
[1765391787603,0.010773,92827.0,92814.0,0.64223757]
[1765391788105,0.3608,92831.0,92830.0,0.2269]
[1765391788310,0.3608,92839.0,92832.0,0.2269]
[1765391788311,0.06502,92833.0,92832.0,0.2269]
[1765391788809,0.06502,92833.0,92832.0,0.0350262]
[1765391788810,0.28804,92833.0,92832.0,0.0350262]
[1765391789010,0.28804,92833.0,92823.0,0.00016164]
[1765391789309,0.22302,92825.0,92824.0,0.03501826]
[1765391790110,0.22302,92825.0,92824.0,0.14302826]
[1765391790608,0.22302,92825.0,92824.0,0.03501826]
[1765391791005,0.22302,92825.0,92824.0,0.03801826]
[1765391791199,0.22302,92825.0,92824.0,0.14602826]
[1765391791401,0.22302,92825.0,92824.0,0.04001826]
[1765391793815,0.22302,92825.0,92824.0,0.27769146]
[1765391794107,0.22302,92825.0,92824.0,0.26691826]
[1765391794309,0.0107729,92827.0,92826.0,0.2269]
[1765391794501,0.58382,92831.0,92830.0,0.10801]
[1765391794806,0.5945925,92831.0,92830.0,0.14648514]
[1765391795011,0.5945925,92831.0,92830.0,0.03847514]
[1765391795310,0.5945925,92831.0,92824.0,0.005]
[1765391795311,0.2337931,92825.0,92824.0,0.005]
[1765391795611,0.2337931,92825.0,92824.0,0.003]
[1765391796032,0.4846224,92831.0,92830.0,0.10801]
[1765391796311,0.5945924,92831.0,92830.0,0.2269]
[1765391796609,0.3608,92831.0,92830.0,0.2269]
[1765391796800,0.00107713,92840.0,92836.0,0.10801]
[1765391796801,0.2337918,92837.0,92836.0,0.10801]
[1765391797008,0.28804,92832.0,92831.0,0.2269]
[1765391797200,0.17807,92832.0,92831.0,0.2269]
[1765391797401,0.28804,92832.0,92831.0,0.10801]
[1765391797601,0.2337924,92831.0,92830.0,0.001]
[1765391797799,0.06502,92832.0,92824.0,0.002]
[1765391797800,0.22302,92825.0,92824.0,0.002]
[1765391798215,0.2337932,92824.0,92823.0,0.00016164]
[1765391798800,0.22302,92824.0,92823.0,0.22706164]
[1765391799212,0.11305,92824.0,92823.0,0.22706164]
[1765391799415,0.11305,92829.0,92828.0,0.2269]
[1765391800319,0.22302,92829.0,92828.0,0.2269]
[1765391800617,0.06502,92832.0,92831.0,0.2269]
[1765391800811,0.22302,92829.0,92828.0,0.1217827]
[1765391801011,0.22302,92829.0,92828.0,0.2406727]
[1765391801408,0.00107713,92840.0,92839.0,0.11889]
[1765391801613,0.11412713,92840.0,92839.0,0.2269]
[1765391801818,0.22409713,92840.0,92839.0,0.2269]
[1765391803542,0.22409713,92840.0,92834.0,0.010772]
[1765391803705,0.22409713,92840.0,92828.0,0.2386728]
[1765391803706,0.28804,92829.0,92828.0,0.2386728]
[1765391803906,0.06502,92829.0,92828.0,0.27403362]
[1765391804920,0.00107713,92840.0,92839.0,0.22637]
[1765391805221,0.00107713,92840.0,92839.0,0.2371415]
[1765391805222,0.22409713,92840.0,92839.0,0.2371415]
[1765391805522,0.22409713,92840.0,92839.0,0.27277419]
[1765391806506,0.00107713,92840.0,92839.0,0.27277419]
[1765391806710,0.00107713,92840.0,92839.0,0.27377419]
[1765391806915,0.00107713,92840.0,92839.0,0.63457419]
[1765391807122,0.00107713,92840.0,92839.0,0.63357419]
[1765391807317,0.00107713,92840.0,92839.0,0.63457419]
[1765391807528,0.00107713,92840.0,92839.0,1.05049339]
[1765391807822,0.00107713,92840.0,92839.0,1.01221487]
[1765391808124,0.06502,92862.0,92839.0,1.01221487]
[1765391808125,0.2337893,92859.0,92858.0,0.22427]
[1765391808326,0.0107693,92859.0,92858.0,0.22427]
[1765391808524,0.2337893,92859.0,92858.0,0.22427]
[1765391809322,0.2337893,92859.0,92858.0,0.22527]
[1765391809624,0.1238193,92859.0,92858.0,0.22727]
[1765391810017,0.2337893,92859.0,92858.0,0.22727]
[1765391810426,0.0107693,92859.0,92858.0,0.22727]
[1765391810627,0.11412684,92865.0,92864.0,0.2331786]
[1765391810923,0.11412684,92865.0,92864.0,0.22241]
[1765391811119,0.22409684,92865.0,92864.0,0.22241]
[1765391811320,0.00084,92880.0,92879.0,0.22171]
[1765391811525,0.06586,92880.0,92879.0,0.22171]
[1765391811706,0.00084,92880.0,92879.0,0.22171]
[1765391811914,0.06586,92880.0,92879.0,0.22171]
[1765391812212,0.28888,92880.0,92879.0,0.22171]
[1765391812418,0.28888,92880.0,92870.0,0.00016155]
[1765391812419,0.22302,92871.0,92870.0,0.00016155]
[1765391812619,0.22302,92871.0,92870.0,0.03504362]
[1765391812827,0.22302,92871.0,92870.0,0.10817155]
[1765391813120,0.22302,92871.0,92870.0,0.00016155]
[1765391814121,0.11305,92853.0,92852.0,0.22051]
[1765391814313,0.06502,92862.0,92852.0,0.25464646]
[1765391814510,0.0107678,92872.0,92866.0,0.21981]
[1765391814809,0.11305,92872.0,92871.0,0.21981]
[1765391815013,0.28804,92873.0,92872.0,0.21981]
[1765391815418,0.28804,92873.0,92872.0,0.25385049]
[1765391815419,0.06502,92873.0,92872.0,0.25385049]
[1765391815612,0.06586,92880.0,92872.0,0.25385049]
[1765391815613,0.00084,92880.0,92879.0,0.2195]
[1765391815834,0.00084,92880.0,92879.0,0.25354049]
[1765391816530,0.00084,92880.0,92879.0,0.27037418]
[1765391816829,0.00084,92880.0,92879.0,0.67037418]
[1765391817520,0.00016091,92881.0,92880.0,0.0107667]
[1765391817722,0.00107655,92890.0,92889.0,0.2288657]
[1765391817932,0.00107626,92915.0,92914.0,0.2188]
[1765391818422,0.05,92948.0,92929.0,0.21928]
[1765391818423,0.0107611,92930.0,92929.0,0.21928]
[1765391818812,0.05185627,92940.0,92939.0,0.10964]
[1765391819017,0.27184627,92940.0,92920.0,0.00016146]
[1765391819216,0.06406,92924.0,92920.0,0.00016146]
[1765391819521,0.21999,92921.0,92920.0,0.22440146]
[1765391819720,0.21999,92921.0,92900.0,0.21741715]
[1765391819721,0.21999,92905.0,92904.0,0.0107639]
[1765391819920,0.21999,92905.0,92904.0,0.15513176]
[1765391820118,0.21999,92905.0,92904.0,0.0601601]
[1765391820417,0.21999,92905.0,92904.0,0.04333176]
[1765391820618,0.21999,92905.0,92895.0,0.02860577]
[1765391820619,0.21999,92890.0,92889.0,0.0107656]
[1765391820818,0.06406,92898.0,92889.0,0.0107656]
[1765391820819,0.28405,92898.0,92897.0,0.0107648]
[1765391821026,0.00016116,92899.0,92898.0,0.22424]
[1765391821227,0.00016116,92899.0,92898.0,0.24106928]
[1765391821414,0.00016116,92899.0,92898.0,0.26236928]
[1765391821728,0.06406,92937.0,92912.0,0.1118]
[1765391821919,0.2307522,92919.0,92918.0,0.1118]
[1765391822318,0.2307522,92919.0,92886.0,0.50336]
[1765391822319,0.2307522,92919.0,92898.0,0.0127646]
[1765391822522,0.2307528,92914.0,92899.0,0.00016146]
[1765391822730,0.2307528,92914.0,92900.0,0.21741715]
[1765391823028,0.21999,92914.0,92913.0,0.22424]
[1765391823428,0.21999,92914.0,92899.0,0.00016146]
[1765391823630,0.21999,92900.0,92899.0,0.00016146]
[1765391823827,0.21999,92900.0,92899.0,0.11196146]
[1765391824030,0.21999,92900.0,92899.0,0.00016146]
[1765391824222,0.06406,92911.0,92910.0,0.22424]
[1765391824423,0.0107613,92928.0,92918.0,0.22424]
[1765391824630,0.06406,92937.0,92914.0,0.0107628]
[1765391824631,0.28405,92924.0,92914.0,0.0107628]
[1765391824825,0.06406,92937.0,92923.0,0.22424]
[1765391825025,0.06406,92937.0,92924.0,0.0107616]
[1765391825217,0.06406,92937.0,92921.0,0.00016146]
[1765391825218,0.0107591,92946.0,92936.0,0.22424]
[1765391825423,0.05,92948.0,92947.0,0.22424]
[1765391825635,0.26999,92948.0,92947.0,0.22424]
[1765391825832,0.05,92948.0,92947.0,0.22424]
[1765391826223,0.05,92948.0,92921.0,0.00016146]
[1765391826224,0.28605,92937.0,92936.0,0.1118]
[1765391826427,0.002,92937.0,92936.0,0.22424]
[1765391826628,0.004,92937.0,92936.0,0.22424]
[1765391827724,0.002,92937.0,92936.0,0.22424]
[1765391828220,0.055,92948.0,92947.0,0.22424]
[1765391828722,0.053,92948.0,92947.0,0.22424]
[1765391828922,0.053,92948.0,92939.0,0.0107599]
[1765391828923,0.21999,92940.0,92939.0,0.0107599]
[1765391829122,0.05,92948.0,92947.0,0.22424]
[1765391829526,0.053,92948.0,92947.0,0.22424]
[1765391830134,0.27299,92948.0,92909.0,0.0107633]
[1765391830333,0.053,92948.0,92947.0,0.22424]
[1765391831135,0.052,92948.0,92947.0,0.22424]
[1765391831830,0.055,92948.0,92947.0,0.22424]
[1765391832025,0.0107598,92940.0,92911.0,0.07768887]
[1765391832237,0.055,92948.0,92936.0,0.22424]
[1765391832238,0.06406,92937.0,92936.0,0.22424]
[1765391832743,0.21999,92947.0,92946.0,0.0107591]
[1765391832939,0.055,92948.0,92947.0,0.22424]
[1765391833848,0.27499,92948.0,92946.0,0.0107591]
[1765391834147,0.27499,92948.0,92922.0,0.0107618]
[1765391834148,0.053,92948.0,92947.0,0.22424]
[1765391834439,0.05,92948.0,92947.0,0.22424]
[1765391835029,0.052,92948.0,92947.0,0.22424]
[1765391835432,0.054,92948.0,92947.0,0.22424]
[1765391836039,0.054,92948.0,92945.0,0.0107591]
[1765391836040,0.26583,92948.0,92945.0,0.0107591]
[1765391836238,0.21321,92946.0,92945.0,0.10706]
[1765391836441,0.21321,92946.0,92945.0,0.21917]
[1765391836633,0.052,92948.0,92943.0,0.0107594]
[1765391836634,0.21321,92944.0,92943.0,0.0107594]
[1765391837141,0.21321,92944.0,92910.0,0.0107633]
[1765391837442,0.052,92948.0,92937.0,0.2299301]
[1765391837443,0.21321,92938.0,92937.0,0.2299301]
[1765391837636,0.10914,92942.0,92936.0,0.0107602]
[1765391837843,0.27696,92937.0,92936.0,0.1178202]
[1765391838041,0.27696,92937.0,92936.0,0.2299302]
[1765391838239,0.27696,92937.0,92890.0,0.02960576]
[1765391838240,0.10407,92923.0,92922.0,0.0107619]
[1765391838439,0.05,92948.0,92924.0,0.0447]
[1765391838631,0.05,92948.0,92921.0,0.00316146]
[1765391838632,0.21321,92945.0,92944.0,0.0107593]
[1765391838837,0.05,92948.0,92947.0,0.21917]
[1765391839543,0.0116056,92977.0,92964.0,0.229927]
[1765391839544,0.00085,92977.0,92964.0,0.229927]
[1765391840946,0.06375,92989.0,92960.0,0.03694]
[1765391840947,0.23665163,92989.0,92960.0,0.03694]
[1765391841248,0.2,93000.0,92979.0,0.21741715]
[1765391841249,0.2107529,93000.0,92979.0,0.21741715]
[1765391841436,0.2,93000.0,92989.0,0.10706]
[1765391841639,0.2,93000.0,92989.0,0.21917]
[1765391841947,0.21321,92987.0,92986.0,0.0107545]
[1765391842447,0.21321,92987.0,92975.0,0.00016137]
[1765391842748,0.21521,92989.0,92988.0,0.10706]
[1765391842940,0.21321,92977.0,92976.0,0.0107556]
[1765391843141,0.21321,92976.0,92975.0,0.00016137]
[1765391843742,0.06375,92974.0,92964.0,0.010757]
[1765391843944,0.21321,92965.0,92964.0,0.010757]
[1765391844150,0.06375,92974.0,92965.0,0.0107569]
[1765391844343,0.00407539,92990.0,92989.0,0.21917]
[1765391844540,0.00407539,92990.0,92987.0,0.10706]
[1765391844738,0.21428539,92990.0,92982.0,0.0107549]
[1765391845036,0.11021539,92990.0,92989.0,0.21917]
[1765391845239,0.11021539,92990.0,92986.0,0.0107544]
[1765391845240,0.10914,92987.0,92986.0,0.0107544]
[1765391845545,0.21321,92987.0,92986.0,0.0107544]
[1765391845742,0.00107539,92990.0,92989.0,0.10706]
[1765391846049,0.00107539,92990.0,92987.0,0.10706]
[1765391846245,0.2,93000.0,92987.0,0.10706]
[1765391846246,0.10914,92988.0,92987.0,0.1178143]
[1765391846445,0.27696,92988.0,92987.0,0.0107543]
[1765391846648,0.002,92990.0,92989.0,0.21917]
[1765391846945,0.27696,92988.0,92987.0,0.0107544]
[1765391847143,0.10914,92983.0,92982.0,0.0107549]
[1765391847349,0.10914,92983.0,92982.0,0.1178149]
[1765391847647,0.21521,92988.0,92987.0,0.21917]
[1765391848146,0.2338,92987.0,92986.0,0.0107544]
[1765391848349,0.002,92988.0,92987.0,0.22284]
[1765391849148,0.2338,92993.0,92980.0,0.00016137]
[1765391849346,0.1787894,93000.0,92980.0,0.00016137]
[1765391849347,0.1787894,93000.0,92992.0,0.22284]
[1765391849547,0.2338,92998.0,92997.0,0.0107531]
[1765391849735,0.2924294,93000.0,92999.0,0.10786]
[1765391849938,0.1787894,93000.0,92999.0,0.22284]
[1765391850140,0.2924294,93000.0,92999.0,0.22284]
[1765391850652,0.2338,92981.0,92980.0,0.00016137]
[1765391852144,0.2338,92968.0,92950.0,1.5]
[1765391852344,0.2338,92968.0,92960.0,0.0107575]
[1765391852345,0.0107567,92967.0,92960.0,0.0107575]
[1765391852556,0.2338,92961.0,92960.0,0.0107575]
[1765391852744,0.2338,92951.0,92950.0,0.0107586]
[1765391852939,0.2338,92951.0,92950.0,0.02757651]
[1765391853144,0.2338,92951.0,92935.0,1.5]
[1765391853145,0.30572,92946.0,92945.0,0.0107591]
[1765391853347,0.2338,92954.0,92953.0,0.0107582]
[1765391853543,0.2338,92954.0,92953.0,0.0907582]
[1765391853756,0.2445582,92954.0,92953.0,0.08]
[1765391853944,0.2338,92951.0,92950.0,0.001]
[1765391854144,0.2338,92942.0,92941.0,0.00016137]
[1765391854346,0.2338,92942.0,92941.0,0.09698073]
[1765391854644,0.2338,92926.0,92925.0,7.994e-05]
[1765391854845,0.2338,92926.0,92925.0,0.04044121]
[1765391855044,0.2338,92926.0,92925.0,0.01007994]
[1765391855350,0.04566,92932.0,92908.0,0.03814617]
[1765391855351,0.2338,92913.0,92912.0,0.02860577]
[1765391855651,0.04566,92932.0,92903.0,0.02876714]
[1765391855652,0.2338,92904.0,92903.0,0.02876714]
[1765391855839,0.2338,92904.0,92903.0,0.05896852]
[1765391856045,0.2338,92904.0,92903.0,0.03036275]
[1765391856355,0.23388936,92904.0,92903.0,0.03036275]
[1765391856557,0.23388936,92904.0,92903.0,0.00016137]
[1765391857344,8.936e-05,92904.0,92903.0,0.22700137]
[1765391857552,0.23388936,92904.0,92903.0,0.00416137]
[1765391857853,0.07192,92910.0,92886.0,0.233606]
[1765391857854,0.07192,92895.0,92886.0,0.233606]
[1765391858055,0.12016,92887.0,92879.0,0.0107668]
[1765391858352,0.12016,92887.0,92849.0,0.0107703]
[1765391858353,9.072e-05,92886.0,92881.0,0.0107666]
[1765391858653,9.072e-05,92886.0,92874.0,0.02860577]
[1765391858654,0.2338,92882.0,92875.0,0.0107672]
[1765391858861,0.2338,92881.0,92880.0,0.0107667]
[1765391859052,0.2338,92881.0,92880.0,0.04077721]
[1765391859249,0.2338,92881.0,92880.0,0.0107667]
[1765391860157,0.2338,92875.0,92874.0,0.01092886]
[1765391860360,0.00109072,92886.0,92879.0,0.0107668]
[1765391860361,0.2338,92880.0,92879.0,0.0107668]
[1765391860850,0.001,92881.0,92874.0,0.00016146]
[1765391860851,0.2338,92875.0,92874.0,0.00016146]
[1765391861062,9.072e-05,92875.0,92874.0,0.22300146]
[1765391861246,0.001,92881.0,92880.0,0.2336067]
[1765391861445,0.07192,92918.0,92892.0,0.2336054]
[1765391861641,0.07192,92918.0,92890.0,0.06863]
[1765391861642,0.2338,92913.0,92912.0,0.010763]
[1765391861946,0.0107601,92938.0,92904.0,0.06863]
[1765391862146,0.2338,92927.0,92926.0,0.0107613]
[1765391862553,0.2338,92937.0,92936.0,0.0107602]
[1765391863056,0.2338,92937.0,92920.0,0.21741715]
[1765391863242,0.2338,92937.0,92933.0,0.0107605]
[1765391863443,0.00016146,92946.0,92940.0,0.0107598]
[1765391863658,0.2338,92945.0,92944.0,0.0107593]
[1765391864156,0.00016146,92946.0,92945.0,0.10786]
[1765391864352,0.23396146,92946.0,92945.0,0.08]
[1765391865854,0.23396146,92946.0,92945.0,0.22284]
[1765391865855,0.00016146,92946.0,92945.0,0.22284]
[1765391866263,0.00016146,92946.0,92940.0,0.0683]
[1765391866264,0.0107558,92975.0,92943.0,0.0107594]
[1765391866453,0.0107558,92975.0,92950.0,0.21741715]
[1765391866650,0.2338,92963.0,92962.0,0.0107572]
[1765391866849,0.2338,92957.0,92949.0,0.0107587]
[1765391867049,0.0107574,92961.0,92949.0,0.0107587]
[1765391867050,0.11364,92950.0,92949.0,0.0107587]
[1765391867256,0.2338,92945.0,92944.0,0.0107592]
[1765391867659,0.2338,92945.0,92940.0,0.00016136]
[1765391867660,0.00016118,92959.0,92956.0,0.0107579]
[1765391867854,0.00016118,92959.0,92958.0,0.22284]
[1765391868559,0.00016118,92959.0,92956.0,0.0107579]
[1765391868560,0.11380118,92959.0,92956.0,0.0107579]
[1765391868756,0.11380118,92959.0,92945.0,0.0107592]
[1765391868757,0.2338,92946.0,92945.0,0.0107592]
[1765391869254,0.2338,92952.0,92951.0,0.0107585]
[1765391869454,0.2338,92952.0,92940.0,0.21757851]
[1765391869658,0.07192,92955.0,92946.0,0.010759]
[1765391869659,0.2338,92947.0,92946.0,0.010759]
[1765391870060,0.11364,92947.0,92946.0,0.118619]
[1765391870363,0.2338,92947.0,92946.0,0.010759]
[1765391870563,0.2338,92950.0,92949.0,0.0107587]
[1765391870764,0.2338,92945.0,92944.0,0.0107592]
[1765391871350,0.07192,92955.0,92949.0,0.0107587]
[1765391871562,0.2338,92953.0,92952.0,0.0107584]
[1765391872266,0.11364,92949.0,92948.0,0.0107588]
[1765391872455,0.11364,92949.0,92948.0,0.1186188]
[1765391872655,0.11364,92949.0,92948.0,0.0107588]
[1765391872656,0.2338,92949.0,92948.0,0.0107588]
[1765391872856,0.2338,92949.0,92948.0,0.1186188]
[1765391873267,0.2348,92949.0,92948.0,0.0107588]
[1765391873951,0.12016,92945.0,92944.0,0.0107593]
[1765391874159,0.2338,92945.0,92944.0,0.0107593]
[1765391874652,0.001,92949.0,92948.0,0.2335989]
[1765391874852,0.001,92949.0,92948.0,0.0107589]
[1765391874853,0.2348,92949.0,92948.0,0.0107589]
[1765391875064,0.2348,92949.0,92940.0,0.00016136]
[1765391875065,0.2338,92945.0,92944.0,0.0107593]
[1765391875971,0.2338,92955.0,92954.0,0.0107581]
[1765391876153,0.00016118,92959.0,92958.0,0.2335977]
[1765391876355,0.11380118,92959.0,92958.0,0.2335977]
[1765391876652,0.00016118,92959.0,92958.0,0.2335977]
[1765391877171,0.2338,92972.0,92971.0,0.0107561]
[1765391877465,0.2338,92972.0,92947.0,0.0107589]
[1765391877466,0.30572,92963.0,92962.0,0.0107572]